Cogmind - Beta 10 @@@ ROGUE MODE // 2020.09.18 @ 04:12:31 Player: Sudoku Result: Destroyed by B-75 Beast with Magnetic Acceleration Cannon Performance ------------- Evolutions (4) 2000 Regions Visited (10) 2000 Robots Destroyed (116) 580 Value Destroyed (4542) 4542 Prototype IDs (32) 640 Alien Tech Used (0) 0 Bonus (2767) 2767 TOTAL SCORE: 12529 Bonus ------- High Alert Combat Kills 1213 Follower Combat Kills 654 Entered Garrisons 400 Used RIF Installer 500 Cogmind --------- Core Integrity 0/850 Matter 273/300 Energy 100/100 System Corruption 0% Temperature Cool (12) Movement Core (300) Ox5 Location -6/Garrison Parts ------- > --- POWER (1) -------- (None) > --- PROPULSION (4) --- (None) > --- UTILITY (6) ------ Large Storage Unit Relay Coupler [Swarmer] (32) Relay Coupler [Grunt] (7) > --- WEAPON (4) ------- Spear > --- INVENTORY (10) --- Relay Coupler [Grunt] (31) Relay Coupler [Grunt] (22) Relay Coupler [Sentry] (22) Relay Coupler [Sentry] (20) Relay Coupler [Sentry] (20) Relay Coupler [Sentry] (21) Relay Coupler [Hunter] (15) Relay Coupler [Hunter] (13) Chronowheel Peak State ------------ > --- POWER ------------ Heavy Deuterium Engine > --- PROPULSION ------- Armored Treads Armored Treads Armored Treads Armored Treads > --- UTILITY ---------- Medium Storage Unit Large Storage Unit Hardened Medium Armor Plating Shock Absorption System > --- WEAPON ----------- Cooled Pulse Rifle Improved Spread Laser Improved Spread Laser Improved Heavy Laser > --- INVENTORY -------- Nuclear Core Armored Treads Medium Treads Medium Treads Large Matter Pod Advanced Signal Interpreter Chronowheel Improved Spread Laser Heavy Ion Cannon Missile Launcher Improved Datajack Improved Datajack Spear [Rating: 52] Favorites ----------- Power Light Nuclear Core Engine Improved Deuterium Engine Power Core Light Nuclear Core Propulsion Armored Treads Treads Armored Treads Leg Aluminum Leg Utility Medium Storage Unit Device Improved Heat Sink Storage Medium Storage Unit Hackware Relay Coupler [Grunt] Protection Hardened Medium Armor Plating Weapon Particle Gun Energy Gun Particle Gun Energy Cannon Heavy Ion Cannon Ballistic Gun Heavy Assault Rifle Launcher Missile Launcher Special Weapon Mining Laser Piercing Weapon Spear Special Melee Weapon Improved Datajack Build | -11 -10 -10 -10 -9 -8 -8 -7 -7 -6 -6 ------- Run | Scr Mat Min Exi Min Mat Sto Fac Gar Fac Gar Slots Evolved 8 | . . . . . 4 . 2 . 2 . Power . | . . . . . . . . . . . Propulsion 2 | . . . . . 2 . . . . . Utility 4 | . . . . . 1 . 1 . 2 . Weapon 2 | . . . . . 1 . 1 . . . Parts Attached 106 | 6 6 . 1 6 23 16 16 22 1 9 Power 8 | 1 1 . . . 1 1 2 1 . 1 Engine 3 | 1 . . . . . . 2 . . . Core 5 | . 1 . . . 1 1 . 1 . 1 Reactor . | . . . . . . . . . . . Propulsion 21 | 2 . . 1 3 6 4 1 4 . . Treads 9 | . . . . . . 4 1 4 . . Leg 12 | 2 . . 1 3 6 . . . . . Wheel . | . . . . . . . . . . . Hover . | . . . . . . . . . . . Flight . | . . . . . . . . . . . Utility 14 | 1 3 . . 1 1 1 2 3 . 2 Device 5 | . . . . . 1 . 1 3 . . Storage 5 | 1 2 . . 1 . 1 . . . . Processor . | . . . . . . . . . . . Hackware 2 | . . . . . . . . . . 2 Protection 2 | . 1 . . . . . 1 . . . Artifact . | . . . . . . . . . . . Weapon 63 | 2 2 . . 2 15 10 11 14 1 6 Energy Gun 31 | . 2 . . 1 12 3 7 6 . . Energy Cannon 4 | . . . . . . . 1 3 . . Ballistic Gun 8 | 2 . . . . 1 3 1 . . 1 Ballistic Cannon . | . . . . . . . . . . . Launcher 10 | . . . . . 1 3 2 3 . 1 Special Weapon 2 | . . . . 1 1 . . . . . Impact Weapon . | . . . . . . . . . . . Slashing Weapon . | . . . . . . . . . . . Piercing Weapon 4 | . . . . . . . . 1 1 2 Special Melee Weapon 4 | . . . . . . 1 . 1 . 2 Unidentified Prototypes 7 | . . . . . 2 1 4 . . . Parts Lost 41 | . . . . . 9 2 1 13 . 16 Power 6 | . . . . . 1 1 1 1 . 2 Propulsion 11 | . . . . . 3 . . 4 . 4 Utility 5 | . . . . . . . . 2 . 3 Weapon 19 | . . . . . 5 1 . 6 . 7 Highest Loss Streak 10 | . . . . . 4 2 1 10 . 8 Average Slot Usage (%) 96 | . 97 100 100 99 97 99 99 96 86 58 Engine 1 | . 9 . . . . . 2 . . . Core 7 | . 4 14 14 14 9 8 4 6 6 4 Treads 19 | . . . . . . 33 30 29 26 11 Leg 10 | . 28 28 28 27 33 2 . . . . Device 7 | . . . . . 8 9 7 13 13 10 Storage 18 | . 22 28 28 28 18 18 15 15 13 12 Protection 2 | . 2 . . . . . 7 . . . Energy Gun 21 | . 1 28 28 28 25 20 25 20 13 4 Energy Cannon 2 | . . . . . . . 3 5 6 2 Ballistic Gun 2 | . 26 . . . . 3 1 . . 2 Naked Turns . | . . . . . . . . . . . Heaviest Build 63 | 10 26 26 26 34 42 42 63 63 50 54 Greatest Support 96 | 20 20 20 20 20 52 80 80 96 96 96 Greatest Overweight (x) 11 | 2 1 1 1 2 1 1 . . . 11 Average Overweight (x) . | . . 1 1 1 . . . . . 1 Largest Inventory Capacity 14 | 6 12 12 12 14 14 14 14 14 14 14 Average Capacity 13 | 5 10 12 12 13 14 14 14 14 14 13 Most Carried 14 | 6 12 12 12 14 14 14 14 14 14 14 Average Carried 12 | 5 9 12 11 13 12 13 13 13 14 12 Final Capacity 14 | 6 12 12 12 14 14 14 14 14 14 10 Final Carried 14 | 6 12 12 12 14 14 14 14 14 14 9 Class Distribution -------------------- 24% | Tank 18% | Scavenger-Mutant 16% | Scavenger-Gunner 15% | Mutant 9% | Bothacker-Mutant 6% | Gunner 4% | Scavenger-Tank Dominant Class ---------------- Mutant | -10/Materials Mutant | -10/Mines Scavenger-Mutant | -10/Exiles Scavenger-Mutant | -9/Mines Scavenger-Gunner | -8/Materials Scavenger-Gunner | -8/Storage Tank | -7/Factory Gunner | -7/Garrison Bothacker-Mutant | -6/Factory Bothacker-Mutant | -6/Garrison Resources | -11 -10 -10 -10 -9 -8 -8 -7 -7 -6 -6 ----------- Run | Scr Mat Min Exi Min Mat Sto Fac Gar Fac Gar Matter Collected 1672 | 276 144 . 30 60 219 353 230 315 . 45 Remotely . | . . . . . . . . . . . Salvage Created 4313 | 96 361 . 166 50 925 868 802 983 . 62 Parts 188 | 1 23 . 4 5 40 39 38 32 . 6 Haulers Intercepted 5 | . 1 . . . 2 1 1 . . . Recyclers Shooed . | . . . . . . . . . . . Parts Field Recycled . | . . . . . . . . . . . Retrieved Matter . | . . . . . . . . . . . Parts Self-Destructed . | . . . . . . . . . . . Prevented . | . . . . . . . . . . . Kills | -11 -10 -10 -10 -9 -8 -8 -7 -7 -6 -6 ------- Run | Scr Mat Min Exi Min Mat Sto Fac Gar Fac Gar Combat Hostiles Destroyed 97 | . 6 . . 3 18 23 18 25 . 4 Melee 6 | . . . . . . . . 4 . 2 Guns 52 | . 6 . . 3 15 10 11 7 . . Cannons 6 | . . . . . . . 3 3 . . AOE 32 | . . . . . 3 13 3 11 . 2 Classes Destroyed 14 | 1 3 . . 1 4 3 1 1 . . Worker 2 | . . . . . . 1 1 . . . Builder 5 | . 2 . . . . 2 1 . . . Hauler 5 | . 1 . . . 2 1 1 . . . Recycler 4 | 1 . . . . 1 1 1 . . . Operator 1 | . . . . . 1 . . . . . Watcher 2 | . . . . . . 1 1 . . . Swarmer 22 | . . . . 3 3 5 4 3 . 4 Grunt 44 | . 6 . . . 8 11 7 12 . . Brawler 4 | . . . . . 1 2 . 1 . . Duelist 2 | . . . . . . . . 2 . . Protector 1 | . . . . . . 1 . . . . Sentry 18 | . . . . . 5 3 4 6 . . Hunter 3 | . . . . . 1 1 . 1 . . Programmer 3 | . . . . . . . 3 . . . Best Kill Streak 7 | 1 7 . . 3 4 6 6 6 . 3 Combat Bots Only 6 | . 4 . . 3 4 5 5 6 . 3 Max Kills in Single Turn 3 | 1 1 . . 1 3 3 3 3 . 1 Gunslinging 1 | . . . . . 1 . . . . . Exploded 3 | . . . . . 1 3 2 3 . 1 Melee 1 | . . . . . . . . 1 . 1 Uniques/NPCs Destroyed . | . . . . . . . . . . . Combat | -11 -10 -10 -10 -9 -8 -8 -7 -7 -6 -6 -------- Run | Scr Mat Min Exi Min Mat Sto Fac Gar Fac Gar Damage Taken 7318 | . 367 . . 118 843 918 1180 2024 . 1868 Core 1695 | . 60 . . 39 63 164 258 242 . 869 Absorbed by Shields 65 | . . . . . . . . . . 65 Core Remaining (%) 61 | 100 . . . 60 . 58 . 28 . . Volleys Fired 220 | 4 26 . 10 9 44 46 45 31 . 5 Largest 4 | 2 2 . 2 2 3 3 4 4 . 2 Hottest 271 | 40 40 . 115 115 180 177 271 240 . 56 Shots Fired 541 | 8 52 . 20 18 116 99 139 83 . 6 Gun 473 | 8 52 . 20 18 111 85 120 57 . 2 Cannon 30 | . . . . . . . 14 16 . . Launcher 35 | . . . . . 2 14 5 10 . 4 Special 3 | . . . . . 3 . . . . . Kinetic 73 | 8 52 . . . 1 12 . . . . Thermal 394 | . . . 20 18 74 73 134 73 . 2 Explosive 35 | . . . . . 2 14 5 10 . 4 Electromagnetic 39 | . . . . . 39 . . . . . Robot Hit Streak 26 | 4 13 . 4 5 19 10 26 12 . 5 Robot Miss Streak 9 | 1 3 . 2 9 6 4 4 8 . 1 Penetration Max . | . . . . . . . . . . . Secondary Targets 9 | . 2 . . 2 3 1 1 . . . Max Gunslinging Chain 1 | . 1 . . 1 1 1 1 . . . Shots Hit Robots 396 | 6 40 . 13 5 79 59 109 77 . 8 Core Hits 309 | 2 20 . 7 3 69 60 65 77 . 6 Critical Hits 2 | . 1 . . . . . . . . 1 Critical Kills 2 | . 1 . . . . . . . . 1 Critical Parts Destroyed . | . . . . . . . . . . . Melee Attacks 29 | . . . . . . 1 . 16 1 11 Impact . | . . . . . . . . . . . Slashing . | . . . . . . . . . . . Piercing 21 | . . . . . . . . 16 1 4 Sneak Attacks 1 | . . . . . . 1 . . . . Combat Hostiles . | . . . . . . . . . . . Follow-up Attacks . | . . . . . . . . . . . Damage Inflicted 10193 | 52 450 . 176 65 1441 2267 2746 2567 . 429 Guns 5547 | 52 450 . 176 65 1131 865 1963 826 . 19 Cannons 456 | . . . . . . . 293 163 . . Explosions 3679 | . . . . . 310 1402 490 1133 . 344 Melee 511 | . . . . . . . . 445 . 66 Ramming . | . . . . . . . . . . . Kinetic 594 | 52 450 . . . 16 76 . . . . Thermal 5212 | . . . 176 65 918 789 2256 989 . 19 Explosive 3467 | . . . . . 98 1402 490 1133 . 344 Electromagnetic 409 | . . . . . 409 . . . . . Impact . | . . . . . . . . . . . Slashing . | . . . . . . . . . . . Piercing 511 | . . . . . . . . 445 . 66 Highest Corruption 2 | . 2 2 2 2 . . 2 2 . . Average Corruption 1 | . 2 2 2 2 . . 1 2 . . Corruption Purged . | . . . . . . . . . . . Effects 40 | . 5 . 6 8 . . 7 14 . . Message Errors 12 | . . . 2 2 . . 4 4 . . Heat Flow Errors 6 | . . . 1 1 . . . 4 . . Energy Discharges 7 | . 1 . 1 2 . . 3 . . . Data Loss (minor) 4 | . . . 1 2 . . . 1 . . Targeting Errors 11 | . 4 . 1 1 . . . 5 . . Overload Shots . | . . . . . . . . . . . Overflow Damage 128 | . . . . . 19 16 25 . . 68 Projectiles . | . . . . . . . . . . . Explosions 128 | . . . . . 19 16 25 . . 68 Melee . | . . . . . . . . . . . Knockbacks . | . . . . . . . . . . . Impact . | . . . . . . . . . . . Kinetic . | . . . . . . . . . . . Secondary . | . . . . . . . . . . . Self-Inflicted Damage 96 | . . . . . 41 . . . . 55 Shots 2 | . . . . . 1 . . . . 1 Rammed . | . . . . . . . . . . . Targets Rammed . | . . . . . . . . . . . Kicked . | . . . . . . . . . . . Crushed . | . . . . . . . . . . . Highest Temperature 629 | . 30 . 240 498 427 381 629 500 . . Average Temperature 146 | . 10 . 80 222 137 143 193 125 . . Received Heat Transfer 2094 | . 207 . . . 369 414 282 531 . 291 Effects 38 | . . . . 5 1 6 21 5 . . Shutdowns 6 | . . . . 2 1 1 1 1 . . Energy Bleed 5 | . . . . 2 . . 2 1 . . Interference 10 | . . . . . . 3 6 1 . . Matter Decay 2 | . . . . . . 1 . 1 . . Short Circuit 5 | . . . . 1 . 1 2 1 . . Damage (minor) 2 | . . . . . . . 2 . . . Damage (major) 6 | . . . . . . . 6 . . . Damage (core) 2 | . . . . . . . 2 . . . Siege Activations . | . . . . . . . . . . . Robots Corrupted . | . . . . . . . . . . . Combat Hostiles . | . . . . . . . . . . . Parts Fried . | . . . . . . . . . . . Impact Corruptions . | . . . . . . . . . . . Robots Melted 1 | . . . . . . . 1 . . . Combat Hostiles 1 | . . . . . . . 1 . . . Parts Melted 19 | . . . . . 1 2 11 5 . . Heat Transferred 8434 | . . . 481 185 1509 1776 3129 1317 . 37 Parts Sabotaged . | . . . . . . . . . . . Parts Stolen . | . . . . . . . . . . . Parts Stripped . | . . . . . . . . . . . Power Chain Reactions 3 | . . . . . 3 . . . . . Missiles Intercepted . | . . . . . . . . . . . Alert | -11 -10 -10 -10 -9 -8 -8 -7 -7 -6 -6 ------- Run | Scr Mat Min Exi Min Mat Sto Fac Gar Fac Gar Peak Influence 1324 | 5 189 73 . 70 531 1132 815 1324 695 400 Initial 695 | . 3 73 . . . 219 514 570 695 382 Average 527 | 1 100 73 . 46 317 672 554 965 593 363 Maximum Alert Level 4 | . . . . . 2 4 3 4 2 2 Low Security (%) 20 | 100 100 100 . 100 26 . . . . . Level 1 17 | . . . . . 27 20 21 . . 99 Level 2 29 | . . . . . 46 29 53 11 100 . Level 3 22 | . . . . . . 42 25 47 . . Level 4 9 | . . . . . . 8 . 40 . . Level 5 . | . . . . . . . . . . . High Security . | . . . . . . . . . . . Max Security . | . . . . . . . . . . . Squads Dispatched 18 | . . . . 1 3 7 7 . . . Investigation 1 | . . . . . 1 . . . . . Extermination 3 | . . . . . . . 3 . . . Reinforcement 8 | . . . . . 2 3 3 . . . Assault 2 | . . . . 1 . 1 . . . . Garrison 4 | . . . . . . 3 1 . . . Intercept . | . . . . . . . . . . . Construction Impeded 1 | . . . . . . 1 . . . . Haulers Reinforced 1 | . . . . . . . 1 . . . Stealth | -11 -10 -10 -10 -9 -8 -8 -7 -7 -6 -6 --------- Run | Scr Mat Min Exi Min Mat Sto Fac Gar Fac Gar Distress Signals 7 | . 2 . . . 4 . 1 . . . Communications Jammed . | . . . . . . . . . . . Distress Signals . | . . . . . . . . . . . Times Spotted 154 | . 9 . . 3 29 44 27 23 . 19 Peak Tracking Total 8 | . 5 . . 3 8 6 7 4 . 8 Tactical Retreats 11 | . . . . . 1 2 2 1 . 5 Traps | -11 -10 -10 -10 -9 -8 -8 -7 -7 -6 -6 ------- Run | Scr Mat Min Exi Min Mat Sto Fac Gar Fac Gar Traps Triggered 6 | . 1 . . . . 1 1 . . 3 Indirectly . | . . . . . . . . . . . Trap Hack Attempts . | . . . . . . . . . . . Triggered . | . . . . . . . . . . . Disarmed . | . . . . . . . . . . . Reprogrammed . | . . . . . . . . . . . Reused . | . . . . . . . . . . . Traps Extracted . | . . . . . . . . . . . Installed . | . . . . . . . . . . . Triggered . | . . . . . . . . . . . Machines | -11 -10 -10 -10 -9 -8 -8 -7 -7 -6 -6 ---------- Run | Scr Mat Min Exi Min Mat Sto Fac Gar Fac Gar Machines Disabled 8 | . . . . . 2 3 1 2 . . Max in Single Turn 1 | . . . . . 1 1 1 1 . . Garrison Relay 2 | . . . . . . . . 2 . . Machines Sabotaged . | . . . . . . . . . . . Garrisons Compromised . | . . . . . . . . . . . Overloaded Fab Kills . | . . . . . . . . . . . Fab Network Shutdowns 1 | . . . . . . . 1 . . . Hacking | -11 -10 -10 -10 -9 -8 -8 -7 -7 -6 -6 --------- Run | Scr Mat Min Exi Min Mat Sto Fac Gar Fac Gar Machines Accessed 23 | . 1 . 1 . 4 6 9 . 2 . Terminals 17 | . 1 . . . 4 6 5 . 1 . Fabricators 1 | . . . . . . . 1 . . . Repair Stations 1 | . . . . . . . 1 . . . Recycling Units . | . . . . . . . . . . . Scanalyzers 1 | . . . . . . . 1 . . . Garrison Access 2 | . . . . . . . 1 . 1 . Total Hacks 60 | . 6 . 1 . 16 14 20 . 3 . Successful 28 | . 4 . 1 . 9 5 7 . 2 . Failed 32 | . 2 . . . 7 9 13 . 1 . Catastrophic 6 | . . . . . 1 1 3 . 1 . Database Lockouts . | . . . . . . . . . . . Manual 22 | . 2 . 2 . 11 5 2 . . . Terminals 51 | . 6 . . . 16 14 13 . 2 . Fabricators 1 | . . . . . . . 1 . . . Repair Stations 4 | . . . . . . . 4 . . . Recycling Units . | . . . . . . . . . . . Scanalyzers 1 | . . . . . . . 1 . . . Garrison Access 2 | . . . . . . . 1 . 1 . Terminal Hacks 17 | . 3 . 1 . 6 3 3 . 1 . Record 2 | . . . . . . 1 1 . . . Prototype ID Bank 1 | . . . . . 1 . . . . . Open Door 1 | . . . . . . 1 . . . . Branch Access Points 2 | . 1 . . . 1 . . . . . Emergency Access Points 1 | . . . . . 1 . . . . . Unreport Threat 2 | . . . . . . . 1 . 1 . Locate Traps 2 | . 1 . . . 1 . . . . . Recall Reinforcements 1 | . . . . . . 1 . . . . Hauler Manifests 1 | . . . . . 1 . . . . . Zone Layout 3 | . 1 . . . 1 . 1 . . . EX-Prototype ID Bank 1 | . . . 1 . . . . . . . Fabricator Hacks 1 | . . . . . . . 1 . . . Build 1 | . . . . . . . 1 . . . Repair Station Hacks 1 | . . . . . . . 1 . . . Scan Component 1 | . . . . . . . 1 . . . Recycling Unit Hacks . | . . . . . . . . . . . Scanalyzer . | . . . . . . . . . . . Garrison Access Hacks 2 | . . . . . . . 1 . 1 . Unlock Access 2 | . . . . . . . 1 . 1 . Unauthorized Hacks 7 | . 1 . . . 3 2 1 . . . Terminals 7 | . 1 . . . 3 2 1 . . . Track 5 | . 1 . . . 3 1 . . . . Botnet 2 | . . . . . . 1 1 . . . Fabricators . | . . . . . . . . . . . Repair Stations . | . . . . . . . . . . . Recycling Units . | . . . . . . . . . . . Scanalyzers . | . . . . . . . . . . . Garrison Access . | . . . . . . . . . . . Data Cores Recovered 1 | . . . . . 1 . . . . . Used 1 | . . . . . 1 . . . . . Hacking Detections 20 | . 1 . . . 4 6 7 . 2 . Full Trace Events 1 | . . . . . 1 . . . . . Feedback Events . | . . . . . . . . . . . Feedback Blocked . | . . . . . . . . . . . Robot Schematics Acquired . | . . . . . . . . . . . Robots Built 1 | . . . . . . . 1 . . . Matter 219 | . . . . . . . 219 . . . Time 116 | . . . . . . . 116 . . . Total Robot Build Rating 3 | . . . . . . . 3 . . . Part Schematics Acquired . | . . . . . . . . . . . Parts Built . | . . . . . . . . . . . Matter . | . . . . . . . . . . . Time . | . . . . . . . . . . . Total Part Build Rating . | . . . . . . . . . . . Parts Repaired . | . . . . . . . . . . . Time . | . . . . . . . . . . . Parts Recycled . | . . . . . . . . . . . Recycled Matter . | . . . . . . . . . . . Retrieved Matter . | . . . . . . . . . . . Retrieved Components . | . . . . . . . . . . . Parts Scanalyzed . | . . . . . . . . . . . Part Schematics Acquired . | . . . . . . . . . . . Parts Damaged . | . . . . . . . . . . . Bothacking | -11 -10 -10 -10 -9 -8 -8 -7 -7 -6 -6 ------------ Run | Scr Mat Min Exi Min Mat Sto Fac Gar Fac Gar Used RIF Installer 1 | . . . . . . . . 1 . . Robots Hacked 3 | . . . . . . . . . . 3 Non-combat . | . . . . . . . . . . . Combat 3 | . . . . . . . . . . 3 Robot Hacks Applied 4 | . . . . . . . . . . 4 overwrite_iff 3 | . . . . . . . . . . 3 streamctrl_high 1 | . . . . . . . . . . 1 Relay Couplers Released 10 | . . . . . . . . 10 . . Machine Destruction 10 | . . . . . . . . 10 . . Attached 2 | . . . . . . . . . . 2 Robots Rewired 2 | . . . 2 . . . . . . . Allies Hacked . | . . . . . . . . . . . Hacks Repelled . | . . . . . . . . . . . Allies | -11 -10 -10 -10 -9 -8 -8 -7 -7 -6 -6 -------- Run | Scr Mat Min Exi Min Mat Sto Fac Gar Fac Gar Total Allies 20 | . . . 2 4 . 10 1 . . 3 Largest Group 10 | . . . 2 4 4 10 1 . . 1 Highest-Rated Group 173 | . . . 29 71 71 173 12 . . 29 Highest-Rated Ally 31 | . . . 21 31 31 29 12 . . 29 Total Orders . | . . . . . . . . . . . Ally Attacks 170 | . . . . . 60 94 . . . 16 Total Damage 2335 | . . . . . 799 1361 . . . 175 Kills 25 | . . . . . 9 15 . . . 1 Allies Corrupted . | . . . . . . . . . . . Allies Melted . | . . . . . . . . . . . Intel | -11 -10 -10 -10 -9 -8 -8 -7 -7 -6 -6 ------- Run | Scr Mat Min Exi Min Mat Sto Fac Gar Fac Gar Robot Analysis Total . | . . . . . . . . . . . Derelict Logs Recovered 1 | . . . . 1 . . . . . . Drone Launches . | . . . . . . . . . . . Drone Recoveries . | . . . . . . . . . . . Exploration | -11 -10 -10 -10 -9 -8 -8 -7 -7 -6 -6 ------------- Run | Scr Mat Min Exi Min Mat Sto Fac Gar Fac Gar Turns Passed 6523 | 118 344 42 517 577 635 787 1844 1201 102 356 Spaces Moved 3339 | 78 172 29 306 358 322 375 880 607 60 152 Core 31 | 17 . . . . . . . . . 14 Treads 2020 | . . . . . . 335 880 607 60 138 Legs 1288 | 61 172 29 306 358 322 40 . . . . Wheels . | . . . . . . . . . . . Hover . | . . . . . . . . . . . Flight . | . . . . . . . . . . . Fastest Speed 50 | 50 120 150 150 150 122 122 170 162 162 162 Average Speed 157 | 113 134 150 150 150 127 164 170 162 162 189 Slowest Speed 600 | 150 150 150 150 180 153 190 170 170 162 600 Overloaded Moves . | . . . . . . . . . . . Propulsion Burnouts . | . . . . . . . . . . . Robots Hopped . | . . . . . . . . . . . Cave-ins Triggered . | . . . . . . . . . . . Exploration Rate (%) 38 | 4 32 9 62 71 36 53 33 80 2 38 Regions Visited 10 Branch Regions 4 Pre-discovered Areas 1 | . . . . 1 . . . . . . Known Exits Taken 4 | . 1 . . . 1 . 1 . 1 . Unknown Exits Taken 5 | 1 . 1 1 1 . 1 . . . . Scrap Searched 3 | . . . . 3 . . . . . . Spaces Dug 74 | . . . . . 14 . 43 . 1 16 Terrain Destroyed 302 | . . . . . 27 108 62 82 1 22 Melee 1 | . . . . . . . . . 1 . Projectile 6 | . . . . . 3 . 3 . . . AOE 295 | . . . . . 24 108 59 82 . 22 Terrain Rammed . | . . . . . . . . . . . Walls Destroyed . | . . . . . . . . . . . Machines Disabled . | . . . . . . . . . . . Actions | -11 -10 -10 -10 -9 -8 -8 -7 -7 -6 -6 --------- Run | Scr Mat Min Exi Min Mat Sto Fac Gar Fac Gar Total 4142 | 99 241 28 346 380 449 459 1136 738 62 204 Wait 253 | 1 14 . . . 34 9 160 33 . 2 Move 3329 | 77 171 28 305 357 321 374 879 605 60 152 Hop . | . . . . . . . . . . . Pick Up 91 | 11 13 . 3 3 17 4 16 22 . 2 Fast Attach 20 | 1 3 . . 1 5 5 5 . . . Attach 45 | 5 . . . . 12 2 5 13 . 8 Detach 3 | . 1 . . . . 1 . . . 1 Swap 41 | . 3 . 1 5 6 9 6 9 1 1 Drop 66 | . 10 . 4 5 10 8 20 9 . . Fire 220 | 4 26 . 10 9 44 46 45 31 . 5 Melee 29 | . . . . . . 1 . 16 1 11 Ram . | . . . . . . . . . . . Kick . | . . . . . . . . . . . Crush . | . . . . . . . . . . . Escape Stasis 22 | . . . . . . . . . . 22 Rewire 23 | . . . 23 . . . . . . . Trap . | . . . . . . . . . . . Miscellaneous . | . . . . . . . . . . . Route ------- -11/Scrapyard -10/Materials (discovered 2 exits: *Min x2) -10/Mines -10/Exiles -9/Mines -8/Materials -8/Storage -7/Factory (discovered 3 exits: *Fac / [*Low] / Gar) -7/Garrison (discovered 3 exits: *Fac x3) -6/Factory -6/Garrison History --------- Turn | Location | Event 6 | -11/Scrapyard | Discovered new exit (range 16) 119 | -11/Scrapyard | Entered Materials 144 | -10/Materials | Identified exit to Mines 302 | -10/Materials | Build established: Mutant 463 | -10/Materials | Entered Mines 499 | -10/Mines | Deemed a non-threat by the Exiles lab entrance 499 | -10/Mines | Discovered new exit (range 5) 505 | -10/Mines | Entered Exiles 505 | -10/Exiles | Found Exiles lab destroyed 756 | -10/Exiles | Opened EX-Vault 766 | -10/Exiles | Found Chronowheel 880 | -10/Exiles | Build established: Scavenger-Mutant 1010 | -10/Exiles | Discovered new exit (range 10) 1022 | -10/Exiles | Entered Mines 1022 | -9/Mines | Accompanied by 2 allies 1100 | -9/Mines | Assembled infested the area 1155 | -9/Mines | Learned location of Storage (-8) 1308 | -9/Mines | Found a hidden stash of uninstalled traps 1400 | -9/Mines | Assisted by bots powering up and referring to "LRC-V3" 1581 | -9/Mines | Discovered new exit (range 10) 1588 | -9/Mines | Met a Derelict testing a Signal Generator 1599 | -9/Mines | Entered Materials 1599 | -8/Materials | Accompanied by 4 allies 1599 | -8/Materials | Evolved 4 slots: Propulsion x2, Utility x1, Weapon x1 1857 | -8/Materials | Lost 4 parts (1n3w) 1965 | -8/Materials | Lost 3 parts (1p2w) 2007 | -8/Materials | Identified exit to Storage 2028 | -8/Materials | Build established: Scavenger-Gunner 2234 | -8/Materials | Entered Storage 2243 | -8/Storage | Assisted by bots powering up and referring to "LRC-V3" 2475 | -8/Storage | Garrison activated, responded to threat 2634 | -8/Storage | First assault squad dispatched 2995 | -8/Storage | Discovered new exit (range 16) 3021 | -8/Storage | Entered Factory 3021 | -7/Factory | Evolved 2 slots: Utility x1, Weapon x1 3438 | -7/Factory | Discovered new exit (range 15) 3486 | -7/Factory | Fabricated M-14 Sweeper? 3645 | -7/Factory | Build established: Tank 4010 | -7/Factory | Local fabrication network quarantined 4326 | -7/Factory | Discovered new exit (range 13) 4807 | -7/Factory | Garrison activated, responded to threat 4863 | -7/Factory | Identified exit to Garrison 4865 | -7/Factory | Entered Garrison 4963 | -7/Garrison | Core integrity fell below 50% 4966 | -7/Garrison | Triggered checkpoint 4996 | -7/Garrison | Lost 10 parts (1p4n2u3w) 5120 | -7/Garrison | Discovered new exit (range 12) 5202 | -7/Garrison | Triggered checkpoint 5252 | -7/Garrison | Triggered checkpoint 5421 | -7/Garrison | Discovered new exit (range 10) 5471 | -7/Garrison | Spotted B-75 Beast 5471 | -7/Garrison | Spotted B-75 Beast 5508 | -7/Garrison | Triggered checkpoint 5598 | -7/Garrison | Discovered new exit (range 14) 5630 | -7/Garrison | Installed Relay Interface Framework 5666 | -7/Garrison | Triggered checkpoint 5683 | -7/Garrison | Garrison Relay disabled 5848 | -7/Garrison | Triggered checkpoint 5929 | -7/Garrison | Triggered checkpoint 5990 | -7/Garrison | Garrison Relay disabled 6066 | -7/Garrison | Entered Factory 6066 | -6/Factory | Evolved 2 slots: Utility x2 6168 | -6/Factory | Identified exit to Garrison 6168 | -6/Factory | Entered Garrison 6222 | -6/Garrison | Triggered checkpoint 6248 | -6/Garrison | Spotted B-75 Beast 6281 | -6/Garrison | Build established: Bothacker-Mutant 6286 | -6/Garrison | Triggered checkpoint 6329 | -6/Garrison | Lost 8 parts (1p3n4w) 6408 | -6/Garrison | Triggered checkpoint 6481 | -6/Garrison | Core integrity fell below 50% 6509 | -6/Garrison | Core integrity fell below 20% 6524 | -6/Garrison | Destroyed by B-75 Beast with Magnetic Acceleration Cannon Last Messages --------------- Rewriting IFF filter. 06466_ Triggered Stasis Trap. 06466_ A bubble of rippling energy engulfs the area. 06466_ Field strength at 94. 06471_ Field strength at 79. 06471_ S-27 Virus destroyed. 06472_ Field strength at 73. 06473_ Field strength at 62. 06473_ Imp. Datajack destroyed. 06474_ Field strength at 51. 06475_ Field strength at 45. 06476_ Field strength at 29. 06477_ Field strength at 20. 06478_ Field strength at 9. 06479_ Stasis field depleted. 06497_ Med. Storage Unit destroyed. 06508_ Knocked back. 06517_ S-27 Virus destroyed. 06518_ Knocked back. 06522_ Acquired 26 matter. Map ----- +----------------------------------------------------+ | ?????????????????????????????????????????????????? | | ?????????????????????????????????????????????????? | | ?????????????????????????????????????????????????? | | ?????????????????????????????????????????????????? | | ?????????????????????????????????????????????????? | | ?????????????????????????????????????????????????? | | ?????????????????????????????????????????????????? | | ?????????????????????????????????????????????????? | | ?????????????????????????????????????????????????? | | ?????????????????????????????????????????????????? | | ?????????????????????????????????????????????????? | | ?????????????????????????????????????????????????? | | ?????????????????????????????????????????????????? | | ?????????????????????????????????????????????????? | | ?????????????????????????????????????????????????? | | ?????????????????????????####????????????????????? | | ????????????????????????? #????????????????????? | | ????????????????????????? #????????????????????? | | ?????????????????????????# #????????????????????? | | ?????????????????????????# #????????????????????? | | ?????????????????????????# #????????????????????? | | ?????????????????????????# #????????????????????? | | ?????????????????????????# #????????????????????? | | ?????????????????????????# #????????????????????? | | ???????????????????#######= ###########??????????? | | ???????????????????# *@= BB #??????????? | | ???????????????????#g#####[ BB #??????????? | | ?????????????????????????# ######## #??????????? | | ?????????????????????????# #??????? #??????????? | | ?????????????????????????# +??????? #??????????? | | ?????????????????????????# #??????? #??????????? | | ?????????????????????????# #??????? #??????????? | | ?????????????????????????# #??????? #??????????? | | ?????????????????????????# #??????? #??????????? | | ?????????????????????????# ^#?????## ##""""###### | | ?????????????????????????# ####### | | ?????????????????????????# !%[ | | ?????????????????????????# ==%= | | ?????????????????????????#########" ## ## # | | ????????????????????????????????### ## ## # | | ????????????????????????????????#%= " | | ????????????????????????????????#[ " | | ????????????????????????????????# = " | | ????????????????????????????????# %! " | | ????????????????????????????????### ## ## # | | ????????????????????????########### ## # | | ????????????????????????# | | ????????????????????????# | | ????????????????????????# ######## # | | ?????????????####???????#^ #?????# # ## ## ## | +----------------------------------------------------+ Best States ------------- Heat Dissipation 65 Energy Generation 18 Energy Capacity 310 Matter Stores 300 Matter Capacity 300 Sight Range 16 Terrain Scan Density 10 Armor Coverage 225 Resistance: EX 25 Evasion (%) 50 Recoil Reduction 4 Relay Coupler Types 39 Relay Coupler Value 2 Item Schematics ----------------- None Robot Schematics ------------------ None Fabricated ------------ M-14 Sweeper | x1 | -7/Factory | Preloaded Alien Tech Used ----------------- None Achievements -------------- My Command Is Your Wish Challenges ------------ None Game ------ Seed AssemblyDisruptorPropulsion Manual? 0 Play Time 01:51:50 Cumulative 103.6 hours Start 2020.09.17 @ 23:12:15 End 2020.09.18 @ 04:12:31 Sessions 3 Manual Loads 0 Difficulty Rogue Special Mode None Game No. 73 Rogue 73 Adventurer 0 Explorer 0 Win Type - Total 0 Types 0/0/0/0/0/0/0/0/0 Lore% 30 Gallery% 45 Achievement% 37 Wizard Run 0 Options --------- ASCII 0 Keyboard 0 Movement Numpad Keybinds 0 Fullscreen 0 Font 16/SmallcapsGlow Map View 76x50 Tactical HUD 1 Map Filters NONE Filters NONE Steam 1 RUN: bdeaf8c7-215d-4fcf-96bf-30ca062697d1